[Event "*** SCC Grand Prix: Titled Tuesday Blitz"]
[Site "Chess.com"]
[Date "2020.06.02"]
[Round "3"]
[White "OK97"]
[Black "nikitakhoroshev"]
[Result "1/2-1/2"]
[WhiteElo "2759"]
[BlackElo "2447"]
[TimeControl "180+1"]
[EndTime "10:32:09 PDT"]
[Termination "Game drawn by agreement"]

1. Nf3 {[%clk 0:03:00.9]} 1... Nf6 {[%clk 0:02:52.8]} 2. c4 {[%clk 0:03:00.4]}
2... e6 {[%clk 0:02:44.3]} 3. g3 {[%clk 0:03:00]} 3... d5 {[%clk 0:02:44]} 4.
Bg2 {[%clk 0:03:00.4]} 4... Be7 {[%clk 0:02:43.4]} 5. d4 {[%clk 0:03:00.3]} 5...
O-O {[%clk 0:02:41.9]} 6. Nc3 {[%clk 0:03:00.4]} 6... b6 {[%clk 0:02:31.5]} 7.
cxd5 {[%clk 0:02:55.3]} 7... exd5 {[%clk 0:02:31.3]} 8. O-O {[%clk 0:02:54.3]}
8... Bb7 {[%clk 0:02:31.5]} 9. Bf4 {[%clk 0:02:51.1]} 9... Na6 {[%clk
0:02:31.2]} 10. Rc1 {[%clk 0:02:47.1]} 10... c5 {[%clk 0:02:30.7]} 11. Ne5
{[%clk 0:02:39.4]} 11... Ne4 {[%clk 0:02:24.9]} 12. Nxe4 {[%clk 0:02:32.1]}
12... dxe4 {[%clk 0:02:25.8]} 13. dxc5 {[%clk 0:02:31.7]} 13... Nxc5 {[%clk
0:02:18.9]} 14. Bh3 {[%clk 0:02:06.6]} 14... Qxd1 {[%clk 0:01:30.3]} 15. Rfxd1
{[%clk 0:02:07.5]} 15... Rfd8 {[%clk 0:01:30.6]} 16. b4 {[%clk 0:01:37.8]} 16...
Ne6 {[%clk 0:01:28.1]} 17. Bxe6 {[%clk 0:01:37.3]} 17... fxe6 {[%clk 0:01:29]}
18. Rxd8+ {[%clk 0:01:29.4]} 18... Bxd8 {[%clk 0:01:28.7]} 19. Rd1 {[%clk
0:01:28.8]} 19... Bd5 {[%clk 0:01:27.1]} 20. a3 {[%clk 0:01:07.7]} 20... Rc8
{[%clk 0:01:24.5]} 21. Ng4 {[%clk 0:01:07.9]} 21... Bf6 {[%clk 0:01:08.8]} 22.
Ne3 {[%clk 0:00:48.6]} 22... Rd8 {[%clk 0:01:07.2]} 23. h4 {[%clk 0:00:34.2]}
23... Rd7 {[%clk 0:00:58.8]} 24. g4 {[%clk 0:00:31.5]} 24... g6 {[%clk
0:00:54.4]} 25. g5 {[%clk 0:00:31.4]} 25... Bb2 {[%clk 0:00:48.5]} 26. Nc4
{[%clk 0:00:25.6]} 26... Bg7 {[%clk 0:00:44.3]} 27. Ne5 {[%clk 0:00:15.8]} 27...
Bxe5 {[%clk 0:00:30.8]} 28. Bxe5 {[%clk 0:00:16.7]} 28... Kf7 {[%clk 0:00:27.9]}
29. Rc1 {[%clk 0:00:17]} 29... Bb3 {[%clk 0:00:20.6]} 30. Rc8 {[%clk 0:00:14.9]}
30... Ke7 {[%clk 0:00:17.6]} 31. Rh8 {[%clk 0:00:13.3]} 31... Bc4 {[%clk
0:00:16.9]} 32. Rxh7+ {[%clk 0:00:13.4]} 32... Ke8 {[%clk 0:00:17.2]} 33. Rh8+
{[%clk 0:00:13.9]} 33... Kf7 {[%clk 0:00:17]} 34. e3 {[%clk 0:00:14]} 34... Be2
{[%clk 0:00:16.3]} 35. Rh7+ {[%clk 0:00:13.1]} 35... Ke8 {[%clk 0:00:16.3]} 36.
Rh8+ {[%clk 0:00:09.6]} 36... Kf7 {[%clk 0:00:16.3]} 37. Rh7+ {[%clk 0:00:04.4]}
37... Ke8 {[%clk 0:00:16.1]} 38. Rxd7 {[%clk 0:00:05.3]} 38... Kxd7 {[%clk
0:00:16.3]} 39. Kg2 {[%clk 0:00:04.9]} 39... Bf3+ {[%clk 0:00:15.5]} 40. Kg3
{[%clk 0:00:05.2]} 40... Kc6 {[%clk 0:00:16]} 41. Kf4 {[%clk 0:00:05.1]} 41...
a5 {[%clk 0:00:16]} 42. bxa5 {[%clk 0:00:05]} 42... bxa5 {[%clk 0:00:16.9]} 43.
Bc3 {[%clk 0:00:04.9]} 43... a4 {[%clk 0:00:14.1]} 44. Ke5 {[%clk 0:00:05.4]}
44... Kd7 {[%clk 0:00:14.4]} 45. Kf6 {[%clk 0:00:05.7]} 45... Bh5 {[%clk
0:00:14.5]} 46. Bb4 {[%clk 0:00:06.2]} 46... Kc6 {[%clk 0:00:12.8]} 47. Ke5
{[%clk 0:00:06.6]} 47... Kb5 {[%clk 0:00:11.2]} 48. Kxe4 {[%clk 0:00:03.9]}
48... Kc6 {[%clk 0:00:11.7]} 49. Ke5 {[%clk 0:00:04.4]} 49... Kd7 {[%clk
0:00:12.2]} 50. Kf4 {[%clk 0:00:04.7]} 50... Kc6 {[%clk 0:00:11.6]} 51. Ke4
{[%clk 0:00:05.1]} 51... Kd7 {[%clk 0:00:11.4]} 52. Kd4 {[%clk 0:00:05.6]} 52...
Bf3 {[%clk 0:00:11.2]} 53. Bf8 {[%clk 0:00:05.7]} 53... Ke8 {[%clk 0:00:10.8]}
54. Bc5 {[%clk 0:00:05.7]} 54... Kf7 {[%clk 0:00:11.1]} 55. Kc3 {[%clk
0:00:06.2]} 55... Bd1 {[%clk 0:00:11]} 56. Kb4 {[%clk 0:00:06.6]} 56... Bb3
{[%clk 0:00:10.8]} 57. Bd4 {[%clk 0:00:07]} 57... Bd1 {[%clk 0:00:11]} 58. Be5
{[%clk 0:00:07.4]} 58... Bb3 {[%clk 0:00:11]} 59. Kc5 {[%clk 0:00:08.1]} 59...
Bc2 {[%clk 0:00:11.1]} 60. Kd4 {[%clk 0:00:08.9]} 60... Bd1 {[%clk 0:00:11]} 61.
Ke4 {[%clk 0:00:09.8]} 61... Bc2+ {[%clk 0:00:11.2]} 62. Kf4 {[%clk 0:00:10.7]}
62... Bd1 {[%clk 0:00:11.4]} 63. f3 {[%clk 0:00:11.2]} 63... Be2 {[%clk
0:00:10.8]} 64. Bb2 {[%clk 0:00:11]} 64... Bd1 {[%clk 0:00:10.8]} 65. e4 {[%clk
0:00:10.8]} 65... Be2 {[%clk 0:00:10.5]} 66. Ke3 {[%clk 0:00:11.3]} 66... Bd1
{[%clk 0:00:10.8]} 67. Bc3 {[%clk 0:00:12.2]} 67... Ke7 {[%clk 0:00:09.6]} 68.
Bb4+ {[%clk 0:00:12.6]} 68... Kf7 {[%clk 0:00:09.7]} 69. Kf2 {[%clk 0:00:13.5]}
69... Kg7 {[%clk 0:00:08.8]} 70. Kg3 {[%clk 0:00:14]} 70... Kf7 {[%clk
0:00:09.1]} 71. Kg4 {[%clk 0:00:14.3]} 71... Kg7 {[%clk 0:00:09.1]} 72. Kf4
{[%clk 0:00:14.5]} 72... Kf7 {[%clk 0:00:09.1]} 73. Bd2 {[%clk 0:00:14.3]} 73...
Kg7 {[%clk 0:00:09.1]} 74. Ke3 {[%clk 0:00:14.7]} 74... Kf7 {[%clk 0:00:09.3]}
75. Bc1 {[%clk 0:00:14.2]} 75... Kg7 {[%clk 0:00:09.3]} 76. Bb2+ {[%clk
0:00:14.3]} 76... Kf7 {[%clk 0:00:09.7]} 77. Ba1 {[%clk 0:00:14.9]} 77... Ke7
{[%clk 0:00:09.7]} 78. Kf2 {[%clk 0:00:15.5]} 78... Kf7 {[%clk 0:00:09.9]} 79.
Kg3 {[%clk 0:00:15.8]} 79... Ke7 {[%clk 0:00:09.7]} 80. h5 {[%clk 0:00:15.4]}
80... gxh5 {[%clk 0:00:09.4]} 81. g6 {[%clk 0:00:15.9]} 81... h4+ {[%clk
0:00:09.4]} 82. Kg4 {[%clk 0:00:10.4]} 82... h3 {[%clk 0:00:09.4]} 83. Be5
{[%clk 0:00:06.1]} 83... h2 {[%clk 0:00:09.2]} 84. Bxh2 {[%clk 0:00:06.2]} 84...
Kf6 {[%clk 0:00:09.3]} 85. Kf4 {[%clk 0:00:03.7]} 85... Kxg6 {[%clk 0:00:08.4]}
86. Ke3 {[%clk 0:00:04.2]} 86... Kf7 {[%clk 0:00:08.1]} 87. f4 {[%clk
0:00:03.9]} 87... Bc2 {[%clk 0:00:07.4]} 88. Kd4 {[%clk 0:00:04.1]} 88... Ke7
{[%clk 0:00:07.5]} 89. Ke5 {[%clk 0:00:04.7]} 89... Kf7 {[%clk 0:00:07.6]} 90.
Bg3 {[%clk 0:00:05.6]} 90... Ke7 {[%clk 0:00:07.6]} 91. Bh4+ {[%clk 0:00:06.5]}
91... Kf7 {[%clk 0:00:08]} 92. Bg5 {[%clk 0:00:07.4]} 92... Bb1 {[%clk
0:00:08.4]} 93. Bd8 {[%clk 0:00:05.5]} 93... Bc2 {[%clk 0:00:08.3]} 94. Ba5
{[%clk 0:00:06]} 94... Bb1 {[%clk 0:00:08.6]} 95. Bb4 {[%clk 0:00:06.8]} 95...
Bc2 {[%clk 0:00:08.9]} 96. Kd4 {[%clk 0:00:06.5]} 96... Bb1 {[%clk 0:00:09.2]}
97. Ke5 {[%clk 0:00:05.5]} 97... Bc2 {[%clk 0:00:09.3]} 98. f5 {[%clk
0:00:05.8]} 98... exf5 {[%clk 0:00:08.8]} 99. Kxf5 {[%clk 0:00:06.7]} 99... Bb1
{[%clk 0:00:09.7]} 100. Ke5 {[%clk 0:00:07.1]} 100... Bc2 {[%clk 0:00:09.4]}
101. Kd5 {[%clk 0:00:07.5]} 101... Ke8 {[%clk 0:00:09.5]} 102. e5 {[%clk
0:00:07.9]} 102... Bb3+ {[%clk 0:00:10.4]} 103. Kd6 {[%clk 0:00:08.2]} 103...
Bd1 {[%clk 0:00:11.3]} 104. e6 {[%clk 0:00:08.6]} 104... Bb3 {[%clk 0:00:12.2]}
105. e7 {[%clk 0:00:08.7]} 105... Bd1 {[%clk 0:00:13.1]} 106. Kc7 {[%clk
0:00:09.1]} 106... Bb3 {[%clk 0:00:14]} 107. Kb6 {[%clk 0:00:10]} 107... Bd1
{[%clk 0:00:14.9]} 108. Ka5 {[%clk 0:00:10.9]} 108... Bb3 {[%clk 0:00:15.8]}
109. Ka6 {[%clk 0:00:11.8]} 109... Bd1 {[%clk 0:00:16.7]} 110. Kb6 {[%clk
0:00:12.5]} 110... Bb3 {[%clk 0:00:17.6]} 111. Kb5 {[%clk 0:00:10.2]} 111... Bd1
{[%clk 0:00:18.5]} 112. Ka5 {[%clk 0:00:10.6]} 1/2-1/2

[Event "*** SCC Grand Prix: Titled Tuesday Blitz"]
[Site "Chess.com"]
[Date "2020.06.02"]
[Round "4"]
[White "fischercapa"]
[Black "amelia91"]
[Result "1-0"]
[WhiteElo "2366"]
[BlackElo "1958"]
[TimeControl "180+1"]
[EndTime "10:34:05 PDT"]
[Termination "fischercapa won by resignation"]

1. e4 {[%clk 0:03:00.8]} 1... c5 {[%clk 0:02:58.7]} 2. Nf3 {[%clk 0:03:01.1]}
2... d6 {[%clk 0:02:57.5]} 3. d4 {[%clk 0:03:01.2]} 3... cxd4 {[%clk 0:02:57.8]}
4. Nxd4 {[%clk 0:03:01.7]} 4... Nf6 {[%clk 0:02:58.1]} 5. Nc3 {[%clk 0:03:01.9]}
5... Nc6 {[%clk 0:02:58.2]} 6. Bc4 {[%clk 0:03:01.5]} 6... e6 {[%clk 0:02:54.2]}
7. Bb3 {[%clk 0:03:01.5]} 7... Be7 {[%clk 0:02:54.1]} 8. Be3 {[%clk 0:03:00.9]}
8... a6 {[%clk 0:02:47.5]} 9. Qe2 {[%clk 0:03:01.2]} 9... Qc7 {[%clk 0:02:45.8]}
10. O-O-O {[%clk 0:03:01.4]} 10... O-O {[%clk 0:02:41.9]} 11. g4 {[%clk
0:03:01.8]} 11... e5 {[%clk 0:02:33.3]} 12. Nf5 {[%clk 0:02:58.1]} 12... b5
{[%clk 0:02:25.4]} 13. g5 {[%clk 0:02:56]} 13... Bxf5 {[%clk 0:02:18.4]} 14.
gxf6 {[%clk 0:02:51.7]} 1-0

[Event "*** SCC Grand Prix: Titled Tuesday Blitz"]
[Site "Chess.com"]
[Date "2020.06.02"]
[Round "4"]
[White "Storchnoi"]
[Black "PetrolulSah"]
[Result "1-0"]
[WhiteElo "2040"]
[BlackElo "2222"]
[TimeControl "180+1"]
[EndTime "10:34:05 PDT"]
[Termination "Storchnoi won by resignation"]

1. d4 {[%clk 0:03:00.9]} 1... d5 {[%clk 0:02:53.8]} 2. c4 {[%clk 0:03:00.8]}
2... e6 {[%clk 0:02:45.7]} 3. Nc3 {[%clk 0:03:00.6]} 3... Nf6 {[%clk 0:02:45.4]}
4. Bg5 {[%clk 0:03:00.3]} 4... Ke7 {[%clk 0:02:45.4]} 5. e4 {[%clk 0:02:57.7]}
5... c6 {[%clk 0:02:43.3]} 6. e5 {[%clk 0:02:56.2]} 6... h6 {[%clk 0:02:41.1]}
7. exf6+ {[%clk 0:02:55.9]} 7... gxf6 {[%clk 0:02:41.1]} 8. Bh4 {[%clk
0:02:53.5]} 8... Bg7 {[%clk 0:02:40.5]} 9. Nf3 {[%clk 0:02:52.8]} 9... Nd7
{[%clk 0:02:37.7]} 10. Bd3 {[%clk 0:02:49.6]} 10... Qb6 {[%clk 0:02:35]} 11.
cxd5 {[%clk 0:02:36.9]} 11... cxd5 {[%clk 0:02:33.2]} 12. O-O {[%clk 0:02:35.5]}
12... Nf8 {[%clk 0:02:32.2]} 13. Qe2 {[%clk 0:02:33.4]} 13... Ng6 {[%clk
0:02:31.5]} 14. Nxd5+ {[%clk 0:02:31.3]} 1-0

[Event "*** SCC Grand Prix: Titled Tuesday Blitz"]
[Site "Chess.com"]
[Date "2020.06.02"]
[Round "4"]
[White "WelshTiger"]
[Black "pedro_nascimento85"]
[Result "1-0"]
[WhiteElo "2362"]
[BlackElo "1931"]
[TimeControl "180+1"]
[EndTime "10:34:09 PDT"]
[Termination "WelshTiger won by resignation"]

1. e4 {[%clk 0:03:00.9]} 1... e6 {[%clk 0:02:58.4]} 2. d4 {[%clk 0:03:00.4]}
2... d5 {[%clk 0:02:57.3]} 3. Nd2 {[%clk 0:03:00.4]} 3... c5 {[%clk 0:02:56.1]}
4. exd5 {[%clk 0:03:00.2]} 4... Qxd5 {[%clk 0:02:55.9]} 5. dxc5 {[%clk
0:03:00.3]} 5... Bxc5 {[%clk 0:02:51.7]} 6. Ngf3 {[%clk 0:03:00.8]} 6... Nf6
{[%clk 0:02:48.9]} 7. Bc4 {[%clk 0:03:00.8]} 7... Qd8 {[%clk 0:02:43.5]} 8. O-O
{[%clk 0:02:56.3]} 8... O-O {[%clk 0:02:42.3]} 9. Qe2 {[%clk 0:02:56.3]} 9... a6
{[%clk 0:02:40.9]} 10. Ne4 {[%clk 0:02:50.2]} 10... Be7 {[%clk 0:02:34]} 11. Bd3
{[%clk 0:02:46.8]} 11... b5 {[%clk 0:02:21.1]} 12. Nxf6+ {[%clk 0:02:45.2]}
12... Bxf6 {[%clk 0:02:20.1]} 13. Qe4 {[%clk 0:02:45.2]} 1-0

[Event "*** SCC Grand Prix: Titled Tuesday Blitz"]
[Site "Chess.com"]
[Date "2020.06.02"]
[Round "4"]
[White "luizwas"]
[Black "AlexandraBotez"]
[Result "0-1"]
[WhiteElo "1847"]
[BlackElo "2195"]
[TimeControl "180+1"]
[EndTime "10:34:12 PDT"]
[Termination "AlexandraBotez won by resignation"]

1. e4 {[%clk 0:02:55.2]} 1... e6 {[%clk 0:02:58.3]} 2. d4 {[%clk 0:02:54.2]}
2... d5 {[%clk 0:02:57.8]} 3. exd5 {[%clk 0:02:54.8]} 3... exd5 {[%clk
0:02:56.8]} 4. Bd3 {[%clk 0:02:55]} 4... c5 {[%clk 0:02:53.6]} 5. dxc5 {[%clk
0:02:51.9]} 5... Bxc5 {[%clk 0:02:53.1]} 6. Nf3 {[%clk 0:02:52.4]} 6... Nf6
{[%clk 0:02:52.9]} 7. Bg5 {[%clk 0:02:51.2]} 7... O-O {[%clk 0:02:52.8]} 8. Nc3
{[%clk 0:02:51.3]} 8... Qb6 {[%clk 0:02:50.4]} 9. Qd2 {[%clk 0:02:45.2]} 9...
Re8+ {[%clk 0:02:43.5]} 10. Kd1 {[%clk 0:02:42.6]} 10... Bxf2 {[%clk 0:02:22.3]}
11. Bxf6 {[%clk 0:02:41.8]} 11... gxf6 {[%clk 0:02:20.4]} 12. Qh6 {[%clk
0:02:42.2]} 12... f5 {[%clk 0:02:12.2]} 13. Ng5 {[%clk 0:02:41.1]} 13... Qxh6
{[%clk 0:02:09.3]} 0-1

[Event "*** SCC Grand Prix: Titled Tuesday Blitz"]
[Site "Chess.com"]
[Date "2020.06.02"]
[Round "4"]
[White "djano"]
[Black "Mimsychess"]
[Result "0-1"]
[WhiteElo "2425"]
[BlackElo "2266"]
[TimeControl "180+1"]
[EndTime "10:34:27 PDT"]
[Termination "Mimsychess won by resignation"]

1. d4 {[%clk 0:03:00.9]} 1... Nf6 {[%clk 0:02:59]} 2. Nf3 {[%clk 0:03:01]} 2...
c5 {[%clk 0:02:56.5]} 3. c3 {[%clk 0:03:00.4]} 3... e6 {[%clk 0:02:51]} 4. Bf4
{[%clk 0:02:58.9]} 4... d5 {[%clk 0:02:47.9]} 5. e3 {[%clk 0:02:54.7]} 5... Bd6
{[%clk 0:02:47.8]} 6. Bg3 {[%clk 0:02:53.3]} 6... O-O {[%clk 0:02:44.9]} 7. Nbd2
{[%clk 0:02:53.3]} 7... b6 {[%clk 0:02:45.1]} 8. Ne5 {[%clk 0:02:50.3]} 8... Bb7
{[%clk 0:02:40.4]} 9. Bd3 {[%clk 0:02:49]} 9... Ne4 {[%clk 0:02:34.3]} 10. Nxe4
{[%clk 0:02:40.2]} 10... dxe4 {[%clk 0:02:35.2]} 11. Bc2 {[%clk 0:02:40]} 11...
f6 {[%clk 0:02:32.3]} 12. dxc5 {[%clk 0:02:27.9]} 12... Bxe5 {[%clk 0:02:27.1]}
13. Qg4 {[%clk 0:02:18.9]} 13... f5 {[%clk 0:02:23.1]} 0-1

[Event "*** SCC Grand Prix: Titled Tuesday Blitz"]
[Site "Chess.com"]
[Date "2020.06.02"]
[Round "4"]
[White "abykhovsky"]
[Black "x-0414717230"]
[Result "1-0"]
[WhiteElo "2792"]
[BlackElo "2607"]
[TimeControl "180+1"]
[EndTime "10:34:28 PDT"]
[Termination "abykhovsky won by resignation"]

1. d4 {[%clk 0:02:58.7]} 1... Nf6 {[%clk 0:02:59.6]} 2. Nf3 {[%clk 0:02:58.8]}
2... b6 {[%clk 0:02:59.5]} 3. Bg5 {[%clk 0:02:56.8]} 3... Bb7 {[%clk 0:02:59.3]}
4. e3 {[%clk 0:02:56]} 4... e6 {[%clk 0:02:59.8]} 5. c4 {[%clk 0:02:55]} 5...
Be7 {[%clk 0:02:56.8]} 6. Bd3 {[%clk 0:02:53.6]} 6... O-O {[%clk 0:02:57.1]} 7.
Nc3 {[%clk 0:02:53.4]} 7... d5 {[%clk 0:02:57.8]} 8. O-O {[%clk 0:02:52.2]} 8...
Nbd7 {[%clk 0:02:58.3]} 9. cxd5 {[%clk 0:02:51.2]} 9... exd5 {[%clk 0:02:58.3]}
10. Qc2 {[%clk 0:02:48.9]} 10... h6 {[%clk 0:02:58.5]} 11. Bh4 {[%clk
0:02:48.3]} 11... c5 {[%clk 0:02:59.1]} 12. Rad1 {[%clk 0:02:47.8]} 12... Rc8
{[%clk 0:02:58.6]} 13. Ne5 {[%clk 0:02:47.7]} 13... Nxe5 {[%clk 0:02:55.8]} 14.
dxe5 {[%clk 0:02:47.7]} 14... Nd7 {[%clk 0:02:56.5]} 15. Bg3 {[%clk 0:02:42.5]}
15... Kh8 {[%clk 0:02:39.3]} 16. Bf5 {[%clk 0:02:40.6]} 16... g6 {[%clk
0:02:29.6]} 17. Bh3 {[%clk 0:02:36.5]} 17... Bh4 {[%clk 0:02:13.7]} 18. Bxh4
{[%clk 0:02:32]} 18... Qxh4 {[%clk 0:02:12.4]} 19. Bxd7 {[%clk 0:02:31.7]} 1-0

[Event "*** SCC Grand Prix: Titled Tuesday Blitz"]
[Site "Chess.com"]
[Date "2020.06.02"]
[Round "4"]
[White "ElGasanov"]
[Black "Tenamu"]
[Result "1-0"]
[WhiteElo "2736"]
[BlackElo "2355"]
[TimeControl "180+1"]
[EndTime "10:34:38 PDT"]
[Termination "ElGasanov won by resignation"]

1. d4 {[%clk 0:03:00.9]} 1... Nf6 {[%clk 0:02:59.4]} 2. Nf3 {[%clk 0:03:00.8]}
2... e6 {[%clk 0:02:59.5]} 3. Bg5 {[%clk 0:02:59.2]} 3... c5 {[%clk 0:02:59.2]}
4. e3 {[%clk 0:02:58.4]} 4... b6 {[%clk 0:02:51.9]} 5. d5 {[%clk 0:02:55.6]}
5... h6 {[%clk 0:02:45.3]} 6. Bxf6 {[%clk 0:02:54]} 6... Qxf6 {[%clk 0:02:44.7]}
7. Nc3 {[%clk 0:02:54.6]} 7... e5 {[%clk 0:02:36.3]} 8. Nb5 {[%clk 0:02:32.3]}
8... Na6 {[%clk 0:02:34.9]} 9. Nd2 {[%clk 0:02:28]} 9... d6 {[%clk 0:02:28.4]}
10. c3 {[%clk 0:02:19.8]} 10... Qd8 {[%clk 0:02:24.9]} 11. Qa4 {[%clk 0:02:18]}
11... Qd7 {[%clk 0:02:18.8]} 12. Nxd6+ {[%clk 0:02:12]} 12... Bxd6 {[%clk
0:02:17.4]} 13. Bb5 {[%clk 0:02:12.5]} 1-0

[Event "*** SCC Grand Prix: Titled Tuesday Blitz"]
[Site "Chess.com"]
[Date "2020.06.02"]
[Round "4"]
[White "2346PL"]
[Black "Alexander_Moskalenko"]
[Result "0-1"]
[WhiteElo "2452"]
[BlackElo "2825"]
[TimeControl "180+1"]
[EndTime "10:35:00 PDT"]
[Termination "Alexander_Moskalenko won by resignation"]

1. d4 {[%clk 0:03:00.9]} 1... c5 {[%clk 0:03:00.6]} 2. c3 {[%clk 0:03:00.3]}
2... d5 {[%clk 0:03:00.3]} 3. Nf3 {[%clk 0:03:00.3]} 3... Nc6 {[%clk 0:02:59.4]}
4. Bf4 {[%clk 0:02:59.5]} 4... Bg4 {[%clk 0:02:59.1]} 5. e3 {[%clk 0:02:56.7]}
5... Qb6 {[%clk 0:02:57.9]} 6. Qb3 {[%clk 0:02:52.7]} 6... c4 {[%clk 0:02:57.8]}
7. Qxb6 {[%clk 0:02:52.5]} 7... axb6 {[%clk 0:02:58.7]} 8. Na3 {[%clk
0:02:52.7]} 8... Bxf3 {[%clk 0:02:57]} 9. gxf3 {[%clk 0:02:52.5]} 9... e5 {[%clk
0:02:57.3]} 10. Nb5 {[%clk 0:02:46.5]} 10... Ra5 {[%clk 0:02:56.7]} 11. Nc7+
{[%clk 0:02:42.1]} 11... Kd7 {[%clk 0:02:56.5]} 12. dxe5 {[%clk 0:02:41.7]}
12... Kxc7 {[%clk 0:02:56.5]} 13. e6+ {[%clk 0:02:41.7]} 13... Bd6 {[%clk
0:02:56.7]} 14. exf7 {[%clk 0:02:36.1]} 14... Nf6 {[%clk 0:02:55.4]} 15. Bxd6+
{[%clk 0:02:17.5]} 15... Kxd6 {[%clk 0:02:56.3]} 16. e4 {[%clk 0:02:14.9]} 16...
Rf8 {[%clk 0:02:47.9]} 17. exd5 {[%clk 0:02:08.5]} 17... Ne5 {[%clk 0:02:47.6]}
18. f4 {[%clk 0:02:04.4]} 18... Ng6 {[%clk 0:02:41.8]} 19. Bxc4 {[%clk
0:02:02.7]} 19... Nxf4 {[%clk 0:02:38.5]} 20. O-O-O {[%clk 0:01:57.6]} 20... b5
{[%clk 0:02:37.1]} 21. Bb3 {[%clk 0:01:52.3]} 21... Rxf7 {[%clk 0:02:36.3]} 22.
Rd4 {[%clk 0:01:48.3]} 22... Ne2+ {[%clk 0:02:35.5]} 0-1

[Event "*** SCC Grand Prix: Titled Tuesday Blitz"]
[Site "Chess.com"]
[Date "2020.06.02"]
[Round "4"]
[White "PavlovDanila"]
[Black "chessablanca"]
[Result "0-1"]
[WhiteElo "2617"]
[BlackElo "2449"]
[TimeControl "180+1"]
[EndTime "10:35:12 PDT"]
[Termination "chessablanca won by resignation"]

1. e4 {[%clk 0:03:00.9]} 1... e5 {[%clk 0:03:00]} 2. Nf3 {[%clk 0:03:00.5]} 2...
Nc6 {[%clk 0:03:00.5]} 3. Bb5 {[%clk 0:03:00.7]} 3... a6 {[%clk 0:03:00.4]} 4.
Bxc6 {[%clk 0:03:00.7]} 4... dxc6 {[%clk 0:02:59.9]} 5. O-O {[%clk 0:03:01.2]}
5... f6 {[%clk 0:03:00]} 6. d4 {[%clk 0:03:00.9]} 6... exd4 {[%clk 0:03:00.9]}
7. Nxd4 {[%clk 0:03:01.3]} 7... Bd6 {[%clk 0:03:01.4]} 8. Nc3 {[%clk 0:02:58.1]}
8... Ne7 {[%clk 0:03:00.7]} 9. Be3 {[%clk 0:02:45.2]} 9... O-O {[%clk
0:02:59.4]} 10. Qe2 {[%clk 0:02:44.9]} 10... c5 {[%clk 0:02:50.3]} 11. Nb3
{[%clk 0:02:05.5]} 11... b6 {[%clk 0:02:49.2]} 12. Rad1 {[%clk 0:02:03.3]} 12...
Qe8 {[%clk 0:02:47.4]} 13. Rfe1 {[%clk 0:01:39.5]} 13... Qg6 {[%clk 0:02:22.8]}
14. Qf3 {[%clk 0:01:37.1]} 14... Bg4 {[%clk 0:02:21]} 0-1

[Event "*** SCC Grand Prix: Titled Tuesday Blitz"]
[Site "Chess.com"]
[Date "2020.06.02"]
[Round "4"]
[White "CrazyMartian"]
[Black "M1711"]
[Result "0-1"]
[WhiteElo "2294"]
[BlackElo "2468"]
[TimeControl "180+1"]
[EndTime "10:35:33 PDT"]
[Termination "M1711 won by resignation"]

1. d4 {[%clk 0:03:00.7]} 1... Nf6 {[%clk 0:02:58.3]} 2. Bf4 {[%clk 0:02:58.6]}
2... d5 {[%clk 0:02:57.3]} 3. e3 {[%clk 0:02:58.8]} 3... c5 {[%clk 0:02:57.9]}
4. c3 {[%clk 0:02:59]} 4... Nc6 {[%clk 0:02:58.6]} 5. Nd2 {[%clk 0:02:59.4]}
5... e6 {[%clk 0:02:58]} 6. Ngf3 {[%clk 0:02:58.9]} 6... cxd4 {[%clk 0:02:58.2]}
7. exd4 {[%clk 0:02:58.5]} 7... Nh5 {[%clk 0:02:58.2]} 8. Be3 {[%clk 0:02:58.9]}
8... Bd6 {[%clk 0:02:57.4]} 9. Bd3 {[%clk 0:02:59.1]} 9... Nf4 {[%clk
0:02:54.4]} 10. Bxf4 {[%clk 0:02:59.2]} 10... Bxf4 {[%clk 0:02:55.3]} 11. O-O
{[%clk 0:02:59.5]} 11... O-O {[%clk 0:02:54.9]} 12. g3 {[%clk 0:02:59.8]} 12...
Bc7 {[%clk 0:02:53.5]} 13. Re1 {[%clk 0:03:00.2]} 13... f6 {[%clk 0:02:51.9]}
14. Rc1 {[%clk 0:03:00.1]} 14... e5 {[%clk 0:02:46]} 15. dxe5 {[%clk 0:02:44.8]}
15... fxe5 {[%clk 0:02:46.9]} 16. Be2 {[%clk 0:02:38.3]} 16... e4 {[%clk
0:02:34.4]} 17. Nd4 {[%clk 0:02:36.6]} 17... Qf6 {[%clk 0:02:26.5]} 18. Rf1
{[%clk 0:02:18.1]} 18... Nxd4 {[%clk 0:02:24.9]} 19. cxd4 {[%clk 0:02:17.3]}
19... Bb6 {[%clk 0:02:18.5]} 20. Nb3 {[%clk 0:02:03]} 20... Bh3 {[%clk
0:02:17.4]} 21. Nc5 {[%clk 0:02:00.7]} 21... Bxf1 {[%clk 0:02:14.5]} 22. Qxf1
{[%clk 0:02:00.4]} 22... Qxd4 {[%clk 0:02:13.6]} 23. Ne6 {[%clk 0:01:54.7]}
23... Qxf2+ {[%clk 0:02:08.6]} 24. Qxf2 {[%clk 0:01:54.8]} 24... Rxf2 {[%clk
0:02:09.1]} 0-1

[Event "*** SCC Grand Prix: Titled Tuesday Blitz"]
[Site "Chess.com"]
[Date "2020.06.02"]
[Round "4"]
[White "Radzio1987"]
[Black "oykuince"]
[Result "1-0"]
[WhiteElo "2894"]
[BlackElo "2087"]
[TimeControl "180+1"]
[EndTime "10:35:34 PDT"]
[Termination "Radzio1987 won by resignation"]

1. c4 {[%clk 0:03:00.9]} 1... e5 {[%clk 0:02:58.7]} 2. Nc3 {[%clk 0:03:00.6]}
2... Nf6 {[%clk 0:02:58.1]} 3. Nf3 {[%clk 0:03:00.5]} 3... Nc6 {[%clk
0:02:52.5]} 4. a3 {[%clk 0:03:00.6]} 4... d6 {[%clk 0:02:48.3]} 5. b4 {[%clk
0:02:55.8]} 5... Be6 {[%clk 0:02:45.8]} 6. e3 {[%clk 0:02:53.9]} 6... h6 {[%clk
0:02:39.1]} 7. Bb2 {[%clk 0:02:53.4]} 7... Qd7 {[%clk 0:02:38.9]} 8. d3 {[%clk
0:02:45]} 8... Be7 {[%clk 0:02:36.6]} 9. Be2 {[%clk 0:02:45]} 9... g5 {[%clk
0:02:23.6]} 10. Nd2 {[%clk 0:02:32.5]} 10... h5 {[%clk 0:02:16.4]} 11. Nde4
{[%clk 0:02:30.2]} 11... Nxe4 {[%clk 0:02:04.5]} 12. dxe4 {[%clk 0:02:31.1]}
12... g4 {[%clk 0:01:54.6]} 13. Nd5 {[%clk 0:02:29.8]} 13... Rg8 {[%clk
0:01:47.9]} 14. Qc2 {[%clk 0:02:15.5]} 14... f5 {[%clk 0:01:42.3]} 15. exf5
{[%clk 0:02:10.6]} 15... Bxf5 {[%clk 0:01:41.3]} 16. Bd3 {[%clk 0:02:10.3]}
16... e4 {[%clk 0:01:31.7]} 17. Bxe4 {[%clk 0:02:08.8]} 17... Bxe4 {[%clk
0:01:31.9]} 18. Qxe4 {[%clk 0:02:09.7]} 1-0